fUST/lending_fUST_20241227
["ID","MTS","AMOUNT","RATE_DAILY","PERIOD"]
[346778485,1735282240481,-153.4628105,9.58e-05,2]
[346778486,1735282240492,-153.0,9.58e-05,2]
[346778487,1735282240502,-352.3665978,9.58e-05,2]
[346778488,1735282240511,-500.0,9.667e-05,2]
[346778489,1735282240520,-500.0,9.667e-05,2]
[346778490,1735282240530,-500.0,9.667e-05,2]
[346778491,1735282240539,-500.0,9.667e-05,2]
[346778492,1735282240549,-500.0,9.667e-05,2]
[346778493,1735282240558,-595.08,9.667e-05,2]
[346778494,1735282240567,-500.0,9.667e-05,2]
[346778495,1735282240577,-469.42863963,9.667e-05,2]
[346778496,1735282240586,-500.0,9.667e-05,2]
[346778497,1735282240596,-2493.42,9.667e-05,2]
[346778498,1735282240605,-778.05,9.667e-05,2]
[346778499,1735282240615,-482.44329888,9.667e-05,2]
[346778500,1735282240624,-500.0,9.667e-05,2]
[346778501,1735282240633,-500.0,9.667e-05,2]
[346778502,1735282240643,-500.0,9.668e-05,2]
[346778503,1735282240652,-500.0,9.668e-05,2]
[346778504,1735282240661,-500.0,9.668e-05,2]
[346778505,1735282240671,-500.0,9.668e-05,2]
[346778506,1735282240680,-500.0,9.668e-05,2]
[346778507,1735282240690,-500.0,9.668e-05,2]
[346778508,1735282240699,-732.23,9.668e-05,2]
[346778509,1735282240708,-500.0,9.668e-05,2]
[346778510,1735282240718,-164.88756898,9.668e-05,2]
[346778511,1735282240727,-580.01,9.668e-05,2]
[346778512,1735282240737,-500.0,9.668e-05,2]
[346778513,1735282240747,-500.0,9.668e-05,2]
[346778514,1735282240757,-500.0,9.668e-05,2]
[346778515,1735282240766,-916.15,9.668e-05,2]
[346778516,1735282240775,-500.0,9.668e-05,2]
[346778517,1735282240784,-500.0,9.668e-05,2]
[346778518,1735282240793,-500.0,9.668e-05,2]
[346778519,1735282240803,-500.0,9.668e-05,2]
[346778520,1735282240812,-500.0,9.668e-05,2]
[346778521,1735282240822,-997.52,9.668e-05,2]
[346778522,1735282240831,-500.0,9.668e-05,2]
[346778523,1735282240840,-647.86,9.668e-05,2]
[346778524,1735282240850,-595.3,9.668e-05,2]
[346778525,1735282240860,-1721.31,9.668e-05,2]
[346778526,1735282240869,-500.0,9.668e-05,2]
[346778527,1735282240878,-500.0,9.668e-05,2]
[346778528,1735282240892,-500.0,9.668e-05,2]
[346778529,1735282240902,-582.03,9.668e-05,2]
[346778530,1735282240911,-500.0,9.668e-05,2]
[346778531,1735282240922,-500.0,9.668e-05,2]
[346778532,1735282240933,-791.98,9.668e-05,2]
[346778533,1735282240943,-500.0,9.668e-05,2]
[346778534,1735282240953,-8384.41,9.668e-05,2]
[346778535,1735282240963,-934.64,9.668e-05,2]
[346778536,1735282240976,-500.0,9.668e-05,2]
[346778537,1735282240986,-939.65,9.668e-05,2]
[346778538,1735282240997,-919.03,9.668e-05,2]
[346778539,1735282241007,-2831.93,9.668e-05,2]
[346778540,1735282241016,-500.0,9.668e-05,2]
[346778541,1735282241026,-500.0,9.668e-05,2]
[346778542,1735282241035,-500.0,9.668e-05,2]
[346778543,1735282241044,-500.0,9.668e-05,2]
[346778544,1735282241054,-500.0,9.668e-05,2]
[346778545,1735282241064,-500.0,9.668e-05,2]
[346778546,1735282241075,-317.31725306,9.668e-05,2]
[346778547,1735282241084,-806.12,9.668e-05,2]
[346778548,1735282241093,-500.0,9.668e-05,2]
[346778549,1735282241103,-1250.01,9.668e-05,2]
[346778550,1735282241112,-500.0,9.668e-05,2]
[346778551,1735282241121,-500.0,9.668e-05,2]
[346778552,1735282241131,-519.86,9.668e-05,2]
[346778553,1735282241140,-1587.12,9.668e-05,2]
[346778554,1735282241149,-500.0,9.668e-05,2]
[346778555,1735282241159,-500.0,9.668e-05,2]
[346778556,1735282241169,-718.43,9.668e-05,2]
[346778557,1735282241178,-1166.25,9.668e-05,2]
[346778558,1735282241187,-500.0,9.668e-05,2]
[346778559,1735282241197,-629.16,9.668e-05,2]
[346778560,1735282241207,-500.0,9.668e-05,2]
[346778561,1735282241216,-727.4,9.668e-05,2]
[346778562,1735282241227,-500.13,9.669e-05,2]
[346778563,1735282241236,-20911.03,9.669e-05,2]
[346778564,1735282241246,-500.0,9.669e-05,2]
[346778565,1735282241255,-500.0,9.67e-05,2]
[346778566,1735282241265,-506.86012929,9.67e-05,2]
[346778567,1735282241275,-500.0,9.67e-05,2]
[346778568,1735282241284,-500.0,9.67e-05,2]
[346778569,1735282241294,-500.0,9.67e-05,2]
[346778570,1735282241303,-500.0,9.67e-05,2]
[346778571,1735282241313,-521.68,9.67e-05,2]
[346778572,1735282241323,-521.68,9.67e-05,2]
[346778573,1735282241333,-500.0,9.67e-05,2]
[346778574,1735282241343,-500.0,9.67e-05,2]
[346778575,1735282241352,-552.12,9.67e-05,2]
[346778576,1735282241362,-500.0,9.67e-05,2]
[346778577,1735282241371,-500.0,9.67e-05,2]
[346778578,1735282241380,-500.0,9.67e-05,2]
[346778579,1735282241389,-500.0,9.67e-05,2]
[346778580,1735282241399,-500.0,9.67e-05,2]
[346778581,1735282241408,-500.0,9.67e-05,2]
[346778582,1735282241417,-500.0,9.67e-05,2]
[346778583,1735282241427,-500.0,9.67e-05,2]
[346778584,1735282241436,-500.0,9.67e-05,2]
[346778585,1735282241446,-500.0,9.67e-05,2]
[346778586,1735282241456,-500.0,9.67e-05,2]
[346778587,1735282241465,-504.14020256,9.67e-05,2]
[346778588,1735282241474,-500.0,9.67e-05,2]
[346778589,1735282241483,-500.0,9.67e-05,2]
[346778590,1735282241493,-608.44,9.67e-05,2]
[346778591,1735282241502,-500.0,9.67e-05,2]
[346778592,1735282241513,-500.0,9.67e-05,2]
[346778593,1735282241522,-500.0,9.67e-05,2]
[346778594,1735282241532,-500.0,9.67e-05,2]
[346778595,1735282241542,-5098.84,9.67e-05,2]
[346778596,1735282241551,-500.0,9.67e-05,2]
[346778597,1735282241561,-500.0,9.67e-05,2]
[346778598,1735282241571,-576.92,9.67e-05,2]
[346778599,1735282241581,-500.0,9.67e-05,2]
[346778600,1735282241591,-500.0,9.67e-05,2]
[346778601,1735282241599,-500.0,9.67e-05,2]
[346778602,1735282241610,-500.0,9.67e-05,2]
[346778603,1735282241620,-500.0,9.67e-05,2]
[346778604,1735282241630,-565.24,9.67e-05,2]
[346778605,1735282241640,-500.0,9.67e-05,2]
[346778606,1735282241650,-500.0,9.67e-05,2]
[346778607,1735282241659,-500.0,9.67e-05,2]
[346778608,1735282241670,-500.0,9.67e-05,2]
[346778609,1735282241680,-1534.92,9.67e-05,2]
[346778610,1735282241691,-500.0,9.67e-05,2]
[346778611,1735282241701,-500.0,9.67e-05,2]
[346778612,1735282241711,-500.0,9.67e-05,2]
[346778613,1735282241721,-500.0,9.67e-05,2]
[346778614,1735282241730,-500.0,9.67e-05,2]
[346778615,1735282241740,-500.0,9.67e-05,2]
[346778616,1735282241750,-500.0,9.67e-05,2]
[346778617,1735282241758,-500.0,9.67e-05,2]
[346778618,1735282241768,-513.0,9.67e-05,2]
[346778619,1735282241778,-669.95,9.67e-05,2]
[346778620,1735282241863,-500.0,9.67e-05,2]
[346778621,1735282241873,-154.76229261,9.67e-05,2]
[346778622,1735282241885,-500.0,9.67e-05,2]
[346778623,1735282241895,-500.0,9.67e-05,2]
[346778624,1735282241905,-500.0,9.67e-05,2]
[346778625,1735282241914,-539.10817775,9.67e-05,2]
[346778626,1735282241923,-500.0,9.67e-05,2]
[346778627,1735282241934,-500.0,9.67e-05,2]
[346778628,1735282241943,-500.0,9.67e-05,2]
[346778629,1735282241953,-500.0,9.67e-05,2]
[346778630,1735282241964,-500.0,9.67e-05,2]
[346778631,1735282241973,-500.0,9.67e-05,2]
[346778632,1735282241982,-500.0,9.67e-05,2]
[346778633,1735282241993,-500.0,9.67e-05,2]
[346778634,1735282242003,-500.0,9.67e-05,2]
[346778635,1735282242013,-719.86,9.67e-05,2]
[346778636,1735282242022,-500.0,9.67e-05,2]
[346778637,1735282242031,-500.0,9.67e-05,2]
[346778638,1735282242041,-500.0,9.67e-05,2]
[346778639,1735282242050,-500.0,9.67e-05,2]
[346778640,1735282242060,-500.0,9.67e-05,2]
[346778641,1735282242069,-500.0,9.67e-05,2]
[346778642,1735282242079,-500.0,9.67e-05,2]
[346778643,1735282242089,-521.68,9.671e-05,2]
[346778644,1735282242098,-521.68,9.671e-05,2]
[346778645,1735282242108,-500.0,9.671e-05,2]
[346778646,1735282242117,-500.0,9.671e-05,2]
[346778647,1735282242127,-500.0,9.671e-05,2]
[346778648,1735282242136,-500.0,9.671e-05,2]
[346778649,1735282242146,-511.39242007,9.671e-05,2]
[346778650,1735282242155,-500.0,9.671e-05,2]
[346778651,1735282242165,-500.0,9.671e-05,2]
[346778652,1735282242175,-500.0,9.671e-05,2]
[346778653,1735282242185,-500.0,9.671e-05,2]
[346778654,1735282242194,-500.0,9.671e-05,2]
[346778655,1735282242203,-500.0,9.671e-05,2]
[346778656,1735282242213,-500.0,9.671e-05,2]
[346778657,1735282242222,-500.0,9.671e-05,2]
[346778658,1735282242232,-500.0,9.671e-05,2]
[346778659,1735282242242,-500.0,9.671e-05,2]
[346778660,1735282242252,-500.0,9.671e-05,2]
[346778661,1735282242261,-521.68,9.672e-05,2]
[346778662,1735282242271,-521.68,9.672e-05,2]
[346778664,1735282242280,-521.68,9.672e-05,2]
[346778666,1735282242290,-521.68,9.672e-05,2]
[346778668,1735282242300,-521.68,9.672e-05,2]
[346778669,1735282242309,-521.87318538,9.672e-05,2]
[346778670,1735282242318,-500.0,9.672e-05,2]
[346778671,1735282242328,-500.0,9.672e-05,2]
[346778672,1735282242337,-500.0,9.672e-05,2]
[346778673,1735282242347,-5167.57,9.672e-05,2]
[346778674,1735282242356,-589.54,9.672e-05,2]
[346778675,1735282242365,-7378.93,9.673e-05,2]
[346778676,1735282242374,-2710.15957572,9.744e-05,2]
[346778677,1735282242383,-9819.28779703,9.76e-05,2]
[346778678,1735282242393,-152.17052718,9.8e-05,2]
[346778679,1735282242403,-1000.0,9.921e-05,2]
[346778680,1735282242412,-465.73968173,9.923e-05,2]
[346778681,1735282242421,-424.28295326,9.941e-05,2]
[346778682,1735282242431,-500.0,9.941e-05,2]
[346778683,1735282242440,-500.0,9.941e-05,2]
[346778684,1735282242450,-500.0,9.941e-05,2]
[346778686,1735282242460,-500.0,9.941e-05,2]
[346778688,1735282242469,-595.08,9.941e-05,2]
[346778690,1735282242479,-248.77072189,9.941e-05,2]
[346778693,1735282242488,-500.0,9.941e-05,2]
[346778695,1735282242498,-2493.42,9.941e-05,2]
[346778696,1735282242507,-778.05,9.941e-05,2]
[346778698,1735282242517,-500.0,9.941e-05,2]
[346778700,1735282242526,-20.28398107,9.941e-05,2]
[346778707,1735282242777,-479.71601893,9.941e-05,2]
[346778708,1735282242787,-500.0,9.942e-05,2]
[346778710,1735282242797,-122.6743007,9.942e-05,2]
[346779571,1735282501570,13515.6018434,8.488e-05,2]
[346779572,1735282708291,346470.13639,0.00020463,120]
[346779575,1735282984807,10000.0,0.00023,120]
[346779576,1735283079374,500.0,0.00020465,120]
[346779577,1735283301730,285.93552835,8.931e-05,2]
[346779578,1735283309881,285.93552835,8.931e-05,2]
[346779579,1735283351150,-245.0,9.296e-05,2]
[346779580,1735283410512,-355.0,9.296e-05,2]
[346779581,1735283410541,-1134.20295502,9.296e-05,2]
[346779582,1735283410583,-83.79704498,9.296e-05,2]
[346779583,1735283410611,-300.0,9.39e-05,2]
[346779584,1735283410638,-300.0,9.39e-05,2]
[346779585,1735283410665,-364.02537518,9.391e-05,2]
[346780226,1735283438068,-231.63638568,9.297e-05,2]
[346780227,1735283438078,-780.96361432,9.391e-05,2]
[346780236,1735283438182,-268.45638568,9.391e-05,2]
[346780238,1735283438192,-545.69,9.391e-05,2]
[346780240,1735283438202,-500.0,9.391e-05,2]
[346780242,1735283438212,-7685.71,9.391e-05,2]
[346780244,1735283438222,-525.82,9.391e-05,2]
[346780246,1735283438231,-2595.94,9.391e-05,2]
[346780248,1735283438241,-500.0,9.391e-05,2]
[346780250,1735283438250,-500.0,9.391e-05,2]
[346780252,1735283438260,-1522.47,9.391e-05,2]
[346780254,1735283438268,-2313.72,9.391e-05,2]
[346780256,1735283438279,-684.8,9.391e-05,2]
[346780258,1735283438288,-748.96,9.391e-05,2]
[346780260,1735283438301,-500.0,9.391e-05,2]
[346780262,1735283438310,-500.0,9.391e-05,2]
[346780264,1735283438320,-1279.73,9.391e-05,2]
[346780266,1735283438330,-500.0,9.391e-05,2]
[346780268,1735283438339,-500.0,9.391e-05,2]
[346780269,1735283438349,-348.03199903,9.391e-05,2]
[346780271,1735283438358,-500.0,9.391e-05,2]
[346780273,1735283438367,-500.0,9.391e-05,2]
[346780275,1735283438377,-500.0,9.391e-05,2]
[346780277,1735283438386,-500.0,9.391e-05,2]
[346780279,1735283438397,-500.0,9.391e-05,2]
[346780281,1735283438407,-598.75964099,9.391e-05,2]
[346780283,1735283438417,-500.0,9.391e-05,2]
[346780285,1735283438426,-346.01991672,9.391e-05,2]
[346780287,1735283438435,-500.0,9.392e-05,2]
[346780288,1735283438445,-500.0,9.392e-05,2]
[346780290,1735283438455,-500.0,9.392e-05,2]
[346780292,1735283438465,-500.0,9.392e-05,2]
[346780294,1735283438475,-500.0,9.392e-05,2]
[346780296,1735283438485,-500.0,9.392e-05,2]
[346780298,1735283438495,-500.0,9.392e-05,2]
[346780300,1735283438506,-671.21,9.392e-05,2]
[346780303,1735283438517,-500.0,9.392e-05,2]
[346780305,1735283438526,-531.68,9.392e-05,2]
[346780307,1735283438536,-500.0,9.392e-05,2]
[346780309,1735283438549,-500.0,9.392e-05,2]
[346780310,1735283438559,-500.0,9.392e-05,2]
[346780312,1735283438568,-500.0,9.392e-05,2]
[346780314,1735283438578,-500.0,9.392e-05,2]
[346780316,1735283438588,-500.0,9.392e-05,2]
[346780318,1735283438598,-500.0,9.392e-05,2]
[346780320,1735283438608,-791.1,9.392e-05,2]
[346780322,1735283438618,-500.0,9.392e-05,2]
[346780324,1735283438628,-500.0,9.392e-05,2]
[346780326,1735283438638,-493.09348854,9.392e-05,2]
[346780328,1735283438647,-500.0,9.392e-05,2]
[346780330,1735283438657,-914.39,9.392e-05,2]
[346780332,1735283438667,-1577.87,9.392e-05,2]
[346780334,1735283438676,-425.36457546,9.392e-05,2]
[346780337,1735283438686,-500.0,9.392e-05,2]
[346780338,1735283438695,-500.0,9.392e-05,2]
[346780340,1735283438705,-500.0,9.392e-05,2]
[346780342,1735283438715,-533.52,9.392e-05,2]
[346780344,1735283438724,-500.0,9.392e-05,2]
[346780347,1735283438736,-500.0,9.392e-05,2]
[346780349,1735283438746,-337.17870828,9.392e-05,2]
[346780350,1735283438756,-725.99,9.392e-05,2]
[346780352,1735283438766,-500.0,9.392e-05,2]
[346780354,1735283438776,-6054.05632832,9.392e-05,2]
[346780463,1735283440201,-346.0,9.391e-05,2]
[346780598,1735283443007,-659.69,9.391e-05,2]
[346780600,1735283443018,-765.87484998,9.392e-05,2]
[346780611,1735283443117,-1989.44195065,9.392e-05,2]
[346781472,1735283825884,1464.59937042,0.00020462,60]
[346781473,1735284317320,3102.6569937,8.39e-05,2]
[346781475,1735284466529,193.5621298,8.9e-05,2]
[346781476,1735284518044,-193.5621298,8.99e-05,2]
[346781477,1735284518072,-151.0,9.265e-05,2]
[346781478,1735284518098,-270.01,9.265e-05,2]
[346781479,1735284518124,-300.0,9.388e-05,2]
[346781480,1735284518151,-300.0,9.388e-05,2]
[346781481,1735284518179,-187.33187711,9.388e-05,2]
[346781482,1735284518213,-334.21812289,9.388e-05,2]
[346781483,1735284518242,-500.0,9.388e-05,2]
[346781484,1735284518276,-221.72815459,9.388e-05,2]
[346781485,1735284543238,-300.0,9.387e-05,2]
[346781486,1735284543269,-278.27184541,9.388e-05,2]
[346781487,1735284543302,-500.0,9.388e-05,2]
[346781488,1735284543331,-372.78916719,9.388e-05,2]
[346781489,1735284543366,-127.21083281,9.388e-05,2]
[346781490,1735284543395,-629.77075989,9.388e-05,2]
[346781491,1735284543426,-202.36563863,9.388e-05,2]
[346781492,1735284568136,-297.63436137,9.388e-05,2]
[346781493,1735284568175,-500.0,9.388e-05,2]
[346781494,1735284568205,-408.61794841,9.388e-05,2]
[346781495,1735284568240,-293.0168677,9.388e-05,2]
[346781496,1735284568474,-206.9831323,9.388e-05,2]
[346781497,1735284568505,-500.0,9.389e-05,2]
[346781498,1735284568536,-188.64352998,9.389e-05,2]
[346781499,1735284593196,-536.03220884,9.388e-05,2]
[346781500,1735284593225,-1011.13488543,9.388e-05,2]
[346781501,1735284593258,-929.48069193,9.388e-05,2]
[346781539,1735284632309,-479.39994118,9.388e-05,2]
[346781540,1735284632321,-28.24448146,9.388e-05,2]
[346781541,1735284632331,-300.0,9.388e-05,2]
[346781542,1735284632340,-300.0,9.388e-05,2]
[346781543,1735284632352,-747.35,9.388e-05,2]
[346781544,1735284632362,-667.99498572,9.388e-05,2]
[346781545,1735284632383,-295.79501428,9.388e-05,2]
[346781546,1735284632392,-500.0,9.388e-05,2]
[346781547,1735284632401,-503.0038404,9.388e-05,2]
[346781548,1735284632411,-311.35647002,9.389e-05,2]
[346781549,1735284632420,-500.0,9.389e-05,2]
[346781550,1735284632430,-137.17486048,9.389e-05,2]
[346781582,1735284638170,-500.0,9.388e-05,2]
[346781584,1735284638181,-500.0,9.388e-05,2]
[346781586,1735284638190,-503.58759547,9.388e-05,2]
[346781588,1735284638200,-468.26083624,9.388e-05,2]
[346781590,1735284638209,-362.82513952,9.389e-05,2]
[346781592,1735284638219,-643.24,9.389e-05,2]
[346781594,1735284638229,-500.0,9.389e-05,2]
[346781596,1735284638238,-513.72,9.389e-05,2]
[346781598,1735284638247,-500.0,9.389e-05,2]
[346781600,1735284638257,-500.0,9.389e-05,2]
[346781602,1735284638266,-500.0,9.389e-05,2]
[346781604,1735284638276,-500.0,9.389e-05,2]
[346781606,1735284638285,-500.0,9.389e-05,2]
[346781608,1735284638295,-500.0,9.389e-05,2]
[346781610,1735284638304,-500.0,9.389e-05,2]
[346781612,1735284638314,-522.96,9.389e-05,2]
[346781614,1735284638324,-500.0,9.389e-05,2]
[346781616,1735284638334,-540.84,9.389e-05,2]
[346781618,1735284638344,-500.0,9.389e-05,2]
[346781620,1735284638355,-876.29,9.389e-05,2]
[346781622,1735284638364,-1552.29,9.389e-05,2]
[346781624,1735284638374,-500.0,9.389e-05,2]
[346781627,1735284638383,-500.0,9.389e-05,2]
[346781629,1735284638393,-548.08,9.389e-05,2]
[346781631,1735284638402,-500.0,9.389e-05,2]
[346781633,1735284638412,-500.0,9.389e-05,2]
[346781635,1735284638421,-500.0,9.389e-05,2]
[346781637,1735284638431,-7365.47,9.389e-05,2]
[346781639,1735284638440,-753.74,9.389e-05,2]
[346781641,1735284638449,-932.96,9.389e-05,2]
[346781643,1735284638459,-500.0,9.389e-05,2]
[346781645,1735284638468,-500.0,9.389e-05,2]
[346781647,1735284638477,-500.0,9.389e-05,2]
[346781649,1735284638486,-2487.77,9.389e-05,2]
[346781651,1735284638496,-928.77,9.389e-05,2]
[346781653,1735284638506,-896.82,9.389e-05,2]
[346781655,1735284638522,-500.0,9.389e-05,2]
[346781657,1735284638532,-500.0,9.389e-05,2]
[346781659,1735284638541,-500.0,9.389e-05,2]
[346781661,1735284638551,-500.0,9.389e-05,2]
[346781662,1735284638560,-500.0,9.389e-05,2]
[346781664,1735284638569,-500.0,9.389e-05,2]
[346781666,1735284638578,-500.0,9.389e-05,2]
[346781668,1735284638591,-500.0,9.389e-05,2]
[346781669,1735284638600,-500.0,9.389e-05,2]
[346781670,1735284638612,-500.0,9.389e-05,2]
[346781671,1735284638622,-869.37,9.389e-05,2]
[346781672,1735284638633,-1145.84,9.389e-05,2]
[346781673,1735284638643,-1482.78,9.389e-05,2]
[346781674,1735284638653,-500.0,9.389e-05,2]
[346781675,1735284638662,-500.0,9.389e-05,2]
[346781676,1735284638672,-500.0,9.389e-05,2]
[346781677,1735284638681,-1236.36,9.389e-05,2]
[346781678,1735284638691,-658.56,9.389e-05,2]
[346781679,1735284638700,-501.84977759,9.389e-05,2]
[346781680,1735284638710,-576.73,9.389e-05,2]
[346781681,1735284638719,-792.57,9.389e-05,2]
[346781682,1735284638729,-500.0,9.389e-05,2]
[346781683,1735284638739,-500.0,9.39e-05,2]
[346781684,1735284638748,-500.0,9.39e-05,2]
[346781685,1735284638757,-500.0,9.39e-05,2]
[346781686,1735284638767,-313.95338671,9.39e-05,2]
[346781687,1735284638776,-504.92733184,9.39e-05,2]
[346781688,1735284638785,-500.0,9.39e-05,2]
[346781689,1735284638794,-500.0,9.39e-05,2]
[346781690,1735284638804,-500.0,9.39e-05,2]
[346781691,1735284638814,-444.72720114,9.39e-05,2]
[346781692,1735284638823,-500.0,9.39e-05,2]
[346781693,1735284638832,-677.1,9.39e-05,2]
[346781694,1735284638842,-500.0,9.39e-05,2]
[346781695,1735284638851,-500.0,9.39e-05,2]
[346781696,1735284638864,-500.0,9.39e-05,2]
[346781697,1735284638875,-500.0,9.39e-05,2]
[346781698,1735284638884,-500.0,9.39e-05,2]
[346781699,1735284638893,-500.0,9.39e-05,2]
[346781700,1735284638904,-500.71111959,9.39e-05,2]
[346781701,1735284638914,-500.0,9.39e-05,2]
[346781702,1735284638923,-500.0,9.39e-05,2]
[346781703,1735284638933,-500.0,9.39e-05,2]
[346781704,1735284638942,-500.0,9.39e-05,2]
[346781705,1735284638952,-500.0,9.39e-05,2]
[346781706,1735284638963,-500.0,9.39e-05,2]
[346781707,1735284638972,-500.0,9.39e-05,2]
[346781708,1735284638982,-500.0,9.39e-05,2]
[346781709,1735284638991,-500.0,9.39e-05,2]
[346781710,1735284639001,-500.0,9.39e-05,2]
[346781711,1735284639011,-426.35592743,9.39e-05,2]
[346781712,1735284639020,-500.0,9.39e-05,2]
[346781713,1735284639029,-8378.50750489,9.39e-05,2]
[346781714,1735284639042,-1762.4,9.39e-05,2]
[346781764,1735284643177,-600.93865988,9.39e-05,2]
[346781885,1735284646345,-493.64050794,9.388e-05,2]
[346781886,1735284646358,-6.35949206,9.388e-05,2]
[346781887,1735284646367,-500.0,9.389e-05,2]
[346781888,1735284646377,-500.0,9.389e-05,2]
[346781889,1735284646386,-2863.65036548,9.39e-05,2]
[346781995,1735284868739,500.0,0.0002046,120]
[346781997,1735285500108,259.0,8.927e-05,2]
[346781999,1735285605274,-238.39177109,9.292e-05,2]
[346782000,1735285647121,-2646.0,9.292e-05,2]
[346782001,1735285647145,-300.0,9.385e-05,2]
[346782002,1735285647168,-300.0,9.385e-05,2]
[346782003,1735285647190,-534.9,9.386e-05,2]
[346782004,1735285647212,-500.0,9.386e-05,2]
[346782005,1735285647233,-495.06679573,9.386e-05,2]
[346782006,1735285647389,-500.0,9.386e-05,2]
[346782007,1735285647410,-500.0,9.386e-05,2]
[346782008,1735285647431,-2811.47,9.386e-05,2]
[346782009,1735285647452,-812.43,9.386e-05,2]
[346782010,1735285647475,-212.06866094,9.386e-05,2]
[346782011,1735285647501,-236.64119554,9.386e-05,2]
[346782012,1735285647527,-1001.53,9.386e-05,2]
[346782013,1735285647547,-500.0,9.386e-05,2]
[346782014,1735285647569,-539.33,9.386e-05,2]
[346782015,1735285647590,-500.0,9.387e-05,2]
[346782016,1735285647611,-500.0,9.387e-05,2]
[346782017,1735285647633,-500.0,9.387e-05,2]
[346782018,1735285647654,-500.0,9.387e-05,2]
[346782019,1735285647676,-1487.61,9.387e-05,2]
[346782020,1735285647698,-500.0,9.387e-05,2]
[346782021,1735285647719,-616.44,9.387e-05,2]
[346782022,1735285647741,-722.34,9.387e-05,2]
[346782023,1735285647765,-894.09,9.387e-05,2]
[346782024,1735285647786,-500.0,9.387e-05,2]
[346782025,1735285647808,-890.07,9.387e-05,2]
[346782026,1735285647830,-7410.9,9.387e-05,2]
[346782027,1735285647852,-859.45,9.387e-05,2]
[346782028,1735285647873,-500.0,9.387e-05,2]
[346782029,1735285647893,-500.0,9.387e-05,2]
[346782030,1735285647914,-500.0,9.387e-05,2]
[346782031,1735285647936,-2618.73,9.387e-05,2]
[346782032,1735285647958,-500.0,9.387e-05,2]
[346782033,1735285647979,-500.0,9.387e-05,2]
[346782034,1735285648001,-988.24,9.387e-05,2]
[346782035,1735285648026,-1305.27,9.387e-05,2]
[346782036,1735285648047,-500.0,9.387e-05,2]
[346782037,1735285648069,-500.0,9.387e-05,2]
[346782038,1735285648090,-500.0,9.387e-05,2]
[346782039,1735285648112,-500.0,9.387e-05,2]
[346782040,1735285648133,-689.08,9.387e-05,2]
[346782041,1735285648155,-1591.72,9.387e-05,2]
[346782042,1735285648176,-500.0,9.387e-05,2]
[346782043,1735285648197,-1319.36,9.387e-05,2]
[346782044,1735285648219,-500.0,9.387e-05,2]
[346782045,1735285648240,-845.04,9.387e-05,2]
[346782046,1735285648267,-500.0,9.387e-05,2]
[346782047,1735285648288,-500.0,9.387e-05,2]
[346782048,1735285648309,-500.0,9.388e-05,2]
[346782049,1735285648330,-500.0,9.388e-05,2]
[346782050,1735285648351,-500.0,9.388e-05,2]
[346782051,1735285648372,-500.0,9.388e-05,2]
[346782052,1735285648394,-500.0,9.388e-05,2]
[346782053,1735285648415,-500.0,9.388e-05,2]
[346782054,1735285648437,-500.0,9.388e-05,2]
[346782055,1735285648459,-525.25,9.388e-05,2]
[346782056,1735285648484,-376.05484492,9.388e-05,2]
[346782057,1735285648516,-500.0,9.388e-05,2]
[346782058,1735285648538,-500.0,9.388e-05,2]
[346782059,1735285648559,-500.0,9.388e-05,2]
[346782060,1735285648580,-500.0,9.388e-05,2]
[346782061,1735285648601,-500.0,9.388e-05,2]
[346782062,1735285648623,-500.0,9.388e-05,2]
[346782063,1735285648643,-500.0,9.388e-05,2]
[346782064,1735285648666,-500.0,9.388e-05,2]
[346782065,1735285648686,-500.0,9.388e-05,2]
[346782066,1735285648708,-457.96,9.388e-05,2]
[346782067,1735285648728,-549.80586573,9.388e-05,2]
[346782068,1735285648750,-500.0,9.388e-05,2]
[346782069,1735285648774,-711.39,9.388e-05,2]
[346782070,1735285648795,-500.0,9.388e-05,2]
[346782071,1735285648817,-500.0,9.388e-05,2]